Workbook

Sheet Planilha1
A1: PREFEITURA MUNICIPAL DE ITAPOÁ – SC
A3: PLANILHA ORÇAMENTÁRIA
A6: OBRA: QUADRA POLIESPORTIVA - ESCOLA E. F. FREI VALENTIM | I6: BASE: SINAPI-SC – OUT./2019
A7: LOCALIDADE: ITAPOÁ | I7: NÃO DESONERADO
H8: BDI: | I8: 0.2328
A10: Cód. Referência | B10: ITEM | C10: DESCRIÇÃO DO SERVIÇO | D10: UNID. | E10: QUANT. | F10: VALOR UNITÁRIO (R$) | G10: UNITÁRIO C/ BDI (R$) | H10: CUSTO TOTAL (R$) | I10: PREÇO TOTAL (R$)
B11: 1 | C11: SERVIÇOS PRELIMINARES | I11: =SUM(H12:H17) -> 52085.91243
A12: 99059 | B12: 1.1 | C12: LOCACAO CONVENCIONAL DE OBRA, UTILIZANDO GABARITO DE TÁBUAS CORRIDAS PONTALETADAS A CADA 2,00M - 2 UTILIZAÇÕES. AF_10/2018 | E12: 84 | F12: 49.33 | G12: =F12*(1+$I$8) -> 60.814024 | H12: =E12*G12 -> 5108.378016
A13: 74209/1 | B13: 1.2 | C13: PLACA DE OBRA EM CHAPA DE ACO GALVANIZADO | D13: M2 | E13: 4.5 | F13: 383.28 | G13: 472.507584 | H13: 2126.284128
A14: 41598 | B14: 1.3 | C14: ENTRADA PROVISORIA DE ENERGIA ELETRICA AEREA TRIFASICA 40A EM POSTE MADEIRA | D14: UN | E14: 1 | F14: 1569.94 | G14: 1935.422032 | H14: 1935.422032
A15: 74220/1 | B15: 1.4 | C15: TAPUME DE CHAPA DE MADEIRA COMPENSADA, E= 6MM, COM PINTURA A CAL E REAPROVEITAMENTO DE 2X | D15: M2 | E15: 290.64 | F15: 58.83 | G15: 72.525624 | H15: 21078.84736
A16: 93208 | B16: 1.5 | C16: EXECUÇÃO DE ALMOXARIFADO EM CANTEIRO DE OBRA EM CHAPA DE MADEIRA COMPENSADA, INCLUSO PRATELEIRAS. AF_02/2016 | D16: M2 | E16: 12 | F16: 713.88 | G16: 880.071264 | H16: 10560.85517
A17: 93212 | B17: 1.6 | C17: EXECUÇÃO DE SANITÁRIO E VESTIÁRIO EM CANTEIRO DE OBRA EM CHAPA DE MADEIRA COMPENSADA, NÃO INCLUSO MOBILIÁRIO. AF_02/2016 | D17: M2 | E17: 12 | F17: 762.23 | G17: 939.677144 | H17: 11276.12573
B19: 2 | C19: INFRA ESTRUTURA | I19: =I20+I30 -> 56049.58868
B20: 2.1 | C20: SAPATAS | I20: =SUM(H21:H28) -> 32484.89418
A21: 96523 | B21: 2.1.1 | C21: ESCAVAÇÃO MANUAL PARA BLOCO DE COROAMENTO OU SAPATA, COM PREVISÃO DE FÔRMA. AF_06/2017 | D21: M3 | E21: 48.89 | F21: 78.58 | G21: =F21*(1+$I$8) -> 96.873424 | H21: =E21*G21 -> 4736.141699
A22: 96535 | B22: 2.1.2 | C22: FABRICAÇÃO, MONTAGEM E DESMONTAGEM DE FÔRMA PARA SAPATA, EM MADEIRA SERRADA, E=25 MM, 4 UTILIZAÇÕES. AF_06/2017 | D22: M2 | E22: 68.75 | F22: 136.44 | G22: 168.203232 | H22: 11563.9722
A23: 92799 | B23: 2,1,3 | C23: FORNECIMENTO, CORTE E DOBRA DE AÇO CA-60, DIÂMETRO DE 4,2 MM, UTILIZADO EM LAJE. AF_12/2015 | D23: KG | E23: 70.7 | F23: 7.14 | G23: 8.802192 | H23: 622.3149744
A24: 96544 | B24: 2,1,4 | C24: ARMAÇÃO DE BLOCO, VIGA BALDRAME OU SAPATA UTILIZANDO AÇO CA-50 DE 6,3 MM - MONTAGEM AF 06/2017 | D24: KG | E24: 73 | F24: 10.88 | G24: 13.412864 | H24: 979.139072
A25: 96545 | B25: 2.15 | C25: ARMAÇÃO DE BLOCO, VIGA BALDRAME OU SAPATA UTILIZANDO AÇO CA-50 DE 8 MM - MONTAGEM. AF_06/2017 | D25: KG | E25: 228.2 | F25: 10.11 | G25: 12.463608 | H25: 2844.195346
A26: 96546 | B26: 2.16 | C26: ARMAÇÃO DE BLOCO, VIGA BALDRAME OU SAPATA UTILIZANDO AÇO CA-50 DE 10,0 MM - MONTAGEM AF 06/2017 | D26: KG | E26: 225.3 | F26: 8.2 | G26: 10.10896 | H26: 2277.548688
A27: 96556 | B27: 2.17 | C27: CONCRETAGEM DE SAPATAS, FCK 30 MPA, COM USO DE JERICA . FORNECIMENTO, LANÇAMENTO, ADENSAMENTO E ACABAMENTO. AF_06/2017 | D27: M3 | E27: 11.98 | F27: 563 | G27: 694.0664 | H27: 8314.915472
A28: 93382 | B28: 2.18 | C28: REATERRO MANUAL DE VALAS COM COMPACTAÇÃO MECANIZADA. AF_04/2016 | D28: M3 | E28: 36.91 | F28: 25.2 | G28: 31.06656 | H28: 1146.66673
A29: 96621 | B29: 2.19 | C29: LASTRO COM MATERIAL GRANULAR, APLICAÇÃO EM BLOCOS DE COROAMENTO, ESPESSURA DE * 5 CM *. AF_08/2017. | D29: M3 | E29: 2.65 | F29: 158.33 | G29: 195.189224 | H29: 517.2514436
B30: 2.2 | C30: VIGAS BALDRAME | I30: =SUM(H31:H38) -> 23564.6945
A31: 96527 | B31: 2.2.1 | C31: ESCAVAÇÃO MANUAL DE VALA PARA VIGA BALDRAME, COM PREVISÃO DE FÔRMA. AF_06/2017 | D31: M3 | E31: 12.09 | F31: 102.93 | G31: =F31*(1+$I$8) -> 126.892104 | H31: =E31*G31 -> 1534.125537
A32: 96536 | B32: 2.2.2 | C32: FABRICAÇÃO, MONTAGEM E DESMONTAGEM DE FÔRMA PARA VIGA BALDRAME, EM MADEIRA SERRADA, E=25 MM, 4 UTILIZAÇÕES. AF_06/2017 | D32: M2 | E32: 131.77 | F32: 66.46 | G32: 81.931888 | H32: 10796.16488
A33: 96545 | B33: 2,2,3 | C33: FORNECIMENTO E ARMAÇÃO DE BLOCO, VIGA BALDRAME OU SAPATA UTILIZANDO AÇO CA-50 DE 8 MM - MONTAGEM. AF_06/2017 | D33: KG | E33: 173 | F33: 10.11 | G33: 12.463608 | H33: 2156.204184
A34: 96546 | B34: 2,2,4 | C34: FORNECIMENTO E ARMAÇÃO DE BLOCO, VIGA BALDRAME OU SAPATA UTILIZANDO AÇO CA-50 DE 10,0 MM - MONTAGEM AF 06/2017 | D34: KG | E34: 114.2 | F34: 8.2 | G34: 10.10896 | H34: 1154.443232
A35: 96547 | B35: 2,2,5 | C35: FORNECIMENTO E ARMAÇÃO DE BLOCO, VIGA BALDRAME OU SAPATA UTILIZANDO AÇO CA-50 DE 12,5 MM - MONTAGEM. AF_06/2017 | D35: KG | E35: 315.5 | F35: 7.16 | G35: 8.826848 | H35: 2784.870544
A36: 92799 | B36: 2,2,4 | C36: FORNECIMENTO, CORTE E DOBRA DE AÇO CA-60, DIÂMETRO DE 4,2 MM, UTILIZADO EM LAJE. AF_12/2015 | D36: KG | E36: 106.09 | F36: 7.14 | G36: 8.802192 | H36: 933.8245493
A37: 96557 | B37: 2,2,5 | C37: FORNECIMENTO E CONCRETAGEM DE BLOCOS DE COROAMENTO E VIGAS DE BALDRAME, FCK 30 MPA, COM USO DE BOMBA  LANÇAMENTO, ADENSAMENTO E ACABAMENTO. AF_06/2017 | D37: M3 | E37: 8.34 | F37: 397.66 | G37: 490.235248 | H37: 4088.561968
A38: 93382 | B38: 2,2,6 | C38: REATERRO MANUAL DE VALAS COM COMPACTAÇÃO MECANIZADA. AF_04/2016 | D38: M3 | E38: 3.75 | F38: 25.2 | G38: 31.06656 | H38: 116.4996
B40: 3 | C40: SUPRA ESTRUTURA | I40: =I46+I41 -> 72880.85224
B41: 3.1 | C41: PILARES | I41: =SUM(H42:H45) -> 47709.48969
A42: 92418 | B42: 3.1.1 | C42: FORNECIMENTO, MONTAGEM E DESMONTAGEM DE FÔRMA DE PILARES RETANGULARES E ESTRUTURAS SIMILARES COM ÁREA MÉDIA DAS SEÇÕES MENOR OU IGUAL A 0,25 M², PÉ-DIREITO SIMPLES, EM MADEIRA SERRADA, 4 UTILIZAÇÕES. AF_12/2015 | D42: M2 | E42: 252 | F42: 78.08 | G42: =F42*(1+$I$8) -> 96.257024 | H42: =E42*G42 -> 24256.77005
A43: 92799 | B43: 3,1,2 | C43: FORNECIMENTO, CORTE E DOBRA DE AÇO CA-60, DIÂMETRO DE 4,2 MM, UTILIZADO EM LAJE. AF_12/2015 | D43: KG | E43: 412.3 | F43: 7.14 | G43: =F43*(1+$I$8) -> 8.802192 | H43: =E43*G43 -> 3629.143762
A44: 92778 | B44: 3,1,3 | C44: ARMAÇÃO DE PILAR OU VIGA DE UMA ESTRUTURA CONVENCIONAL DE CONCRETO ARMADO UTILIZANDO AÇO CA-50 DE 10,0 MM – FORNECIMENTO E MONTAGEM. AF_12/2015 | D44: KG | E44: 908.9 | F44: 8.14 | G44: =F44*(1+$I$8) -> 10.034992 | H44: =E44*G44 -> 9120.804229
A45: 92720 | B45: 3,1,4 | C45: CONCRETAGEM DE VIGAS, FCK = 25 MPA, COM USO DE BOMBA EM EDIFICAÇÃO COM SEÇÃO MÉDIA DE PILARES MENOR OU IGUAL A 0,25 M² -FORNECIMENTO LANÇAMENTO, ADENSAMENTO E ACABAMENTO. AF_12/2015 | D45: M3 | E45: 22.68 | F45: 382.79 | G45: =F45*(1+$I$8) -> 471.903512 | H45: =E45*G45 -> 10702.77165
B46: 3.2 | C46: VIGAS DA COBERTURA | I46: =SUM(H47:H50) -> 25171.36255
A47: 92448 | B47: 3.2.1 | C47: FORNECIMENTO MONTAGEM E DESMONTAGEM DE FÔRMA DE VIGA, ESCORAMENTO COM PONTALETE DE MADEIRA, PÉ-DIREITO SIMPLES, EM MADEIRA SERRADA, 4 UTILIZAÇÕES. AF_12/2015 | D47: M2 | E47: 131.77 | F47: 111.41 | G47: =F47*(1+$I$8) -> 137.346248 | H47: =E47*G47 -> 18098.1151
A48: 92799 | B48: 3,2,2 | C48: FORNECIMENTO, CORTE, DOBRA E MONTAGEM DE AÇO CA-60, DIÂMETRO DE 4,2 MM, UTILIZADO EM LAJE. AF_12/2015 | D48: KG | E48: 122.4 | F48: 7.14 | G48: =F48*(1+$I$8) -> 8.802192 | H48: =E48*G48 -> 1077.388301
A49: 92778 | B49: 3,2,3 | C49: ARMAÇÃO DE PILAR OU VIGA DE UMA ESTRUTURA CONVENCIONAL DE CONCRETO ARMADO EM UMA EDIFICAÇÃO TÉRREA OU SOBRADO UTILIZANDO AÇO CA-50 DE 10,0 MM – FORNECIMENTO E MONTAGEM. AF_12/2015 | D49: KG | E49: 205.3 | F49: 8.14 | G49: =F49*(1+$I$8) -> 10.034992 | H49: =E49*G49 -> 2060.183858
A50: 92720 | B50: 3,2,4 | C50: CONCRETAGEM DE VIGAS, FCK = 25 MPA, COM USO DE BOMBA EM EDIFICAÇÃO COM SEÇÃO MÉDIA DE PILARES MENOR OU IGUAL A 0,25 M² - FORNECIMENTO, LANÇAMENTO, ADENSAMENTO E ACABAMENTO. AF_12/2015 | D50: M3 | E50: 8.34 | F50: 382.79 | G50: =F50*(1+$I$8) -> 471.903512 | H50: =E50*G50 -> 3935.67529
B52: 4 | C52: COBERTURA | I52: =SUM(H53:H59) -> 347442.6981
A53: COMPOSIÇÃO | B53: 4.2 | C53: FORNECIMENTO, FABRICAÇÃO E INSTALAÇÃO DE ESTRUTURA METALICA, EM AÇO GALVANIZADO A FOGO, PARA TELHADOS COM 2 ÁGUAS E PARA TELHA DE AÇO/ALUMINIO, INCLUSO TRANSPORTE VERTICAL. | D53: KG | E53: 15384.25 | F53: 12.19 | G53: =F53*(1+$I$8) -> 15.027832 | H53: =E53*G53 -> 231191.9244
A54: 94213 | B54: 4.3 | C54: FORNECIMENTO E INSTALAÇÃO TELHAMENTO COM TELHA DE AÇO/ALUMÍNIO E = 0,5 MM, COM ATÉ 2 ÁGUAS, INCLUSO IÇAMENTO. AF_07/2019 | D54: M2 | E54: 1198.22 | F54: 41.88 | G54: 51.629664 | H54: 61863.696
A55: COMPOSIÇÃO | B55: 4.4 | C55: FORNECIMENTO E INSTALAÇÃO CUMEEIRA EM PERFIL ONDULADO DE ALUMÍNIO E=0,5MM - 1,10x0,60M | D55: M | E55: 42 | F55: 56.29 | G55: 69.394312 | H55: 2914.561104
A56: 94228 | B56: 4.5 | C56: FORNECIMENTO E INSTALAÇÃO DE,CALHA EM CHAPA DE ALUMINIO NÚMERO 24, DESENVOLVIMENTO DE 50 CM, INCLUSO TRANSPORTE VERTICAL. AF_06/2016 | D56: M | E56: 84 | F56: 65.91 | G56: 81.253848 | H56: 6825.323232
A57: 89578 | B57: 4.6 | C57: TUBO PVC, SÉRIE R, ÁGUA PLUVIAL, DN 100 MM, FORNECIDO E INSTALADO EM CONDUTORES VERTICAIS DE ÁGUAS PLUVIAIS. AF_12/2014 | D57: M | E57: 144 | F57: 26.35 | G57: 32.48428 | H57: 4677.73632
A58: COMPOSIÇÃO | B58: 4.7 | C58: FACHADA EM CHAPA GALVANIZADA N 20, INCLUSIVE ESTRUTURA DE FIXAÇÃO. FORNECIMENTO E INSTALAÇÃO | D58: M2 | E58: 188.8 | F58: 160.84 | G58: 198.283552 | H58: 37435.93462
A59: 94231 | B59: 4.8 | C59: RUFO EM CHAPA DE ALUMINIO NÚMERO 24, CORTE DE 25 CM, INCLUSO TRANSPORTE VERTICAL. AF_06/2016 FORNECIMENTO E INSTALAÇÃO | D59: M | E59: 55.2 | F59: 37.23 | G59: 45.897144 | H59: 2533.522349
B61: 5 | C61: PISO | I61: =SUM(H62:H64) -> 1912.871654
A62: 83534 | B62: 5.1 | C62: LASTRO DE CONCRETO, PREPARO MECÂNICO, INCLUSOS ADITIVO IMPERMEABILIZANTE, LANÇAMENTO E ADENSAMENTO | D62: M3 | E62: 1.2 | F62: 500.4 | G62: =F62*(1+$I$8) -> 616.89312 | H62: =E62*G62 -> 740.271744
A63: COMPOSIÇÃO | B63: 5.2 | C63: DEMOLIÇÃO DE PISO EM CONCRETO DE FORMA MANUAL, SEM REAPROVEITAMENTO. | D63: M3 | E63: 1.2 | F63: 454.94 | G63: =F63*(1+$I$8) -> 560.850032 | H63: =E63*G63 -> 673.0200384
A64: 98680 | B64: 5.2 | C64: PISO CIMENTADO, TRAÇO 1/3 (CIMENTO E AREIA), ACABAMENTO LISO, ESPESSURA 3,0CM, PREPARO MECANICO DA ARGAMASSA. AF 06/2016 | D64: M2 | E64: 12 | F64: 33.77 | G64: =F64*(1+$I$8) -> 41.631656 | H64: =E64*G64 -> 499.579872
C65: -
B66: 6 | C66: INSTALAÇÃO ELÉTRICA | I66: =SUM(H67:H79) -> 15301.93029
A67: 91942 | B67: 6.1 | C67: CAIXA RETANGULAR 4" X 4" ALTA (2,00 M DO PISO), PVC, INSTALADA EM PAREDE - FORNECIMENTO E INSTALAÇÃO. AF_12/2015 | D67: UD | E67: 2 | F67: 34.77 | G67: =F67*(1+$I$8) -> 42.864456 | H67: =E67*G67 -> 85.728912
A68: 97886 | B68: 6.2 | C68: CAIXA DE PASSAGEM 30X30X40 COM TAMPA E DRENO BRITA | D68: UD | E68: 2 | F68: 136.94 | G68: 168.819632 | H68: 337.639264
A69: 91967 | B69: 6.3 | C69: INTERRUPTOR SIMPLES (3 MÓDULOS), 10A/250V, INCLUINDO SUPORTE E PLACA - FORNECIMENTO E INSTALAÇÃO. AF_12/2015 | D69: UD | E69: 2 | F69: 55.8 | G69: 68.79024 | H69: 137.58048
A70: COMPOSIÇÃO | B70: 6.4 | C70: TAMPA DE CONCRETO ARMADO 60X60X5CM PARA CAIXA | D70: UD | E70: 2 | F70: 7.54 | G70: 9.295312 | H70: 18.590624
A71: COMPOSIÇÃO | B71: 6.5 | C71: QUADRO DE DISTRIBUICAO DE ENERGIA EM PLASTICO DE SOBREPOR, PARA 12 DISJUNTORES TERMOMAGNETICOS MONOPOLARES, COM BARRAMENTO BIFASICO E NEUTRO - FORNECIMENTO E INSTALACAO | D71: UD | E71: 1 | F71: 359.11 | G71: 442.710808 | H71: 442.710808
A72: 93653 | B72: 6.6 | C72: DISJUNTOR MONOPOLAR TIPO DIN, CORRENTE NOMINAL DE 10A - FORNECIMENTO E INSTALAÇÃO. AF_04/2016 | D72: UD | E72: 6 | F72: 11.01 | G72: 13.573128 | H72: 81.438768
A73: 91924 | B73: 6.7 | C73: CABO DE COBRE FLEXÍVEL ISOLADO, 1,5 MM², ANTI-CHAMA 450/750 V, PARA CIRCUITOS TERMINAIS - FORNECIMENTO E INSTALAÇÃO. AF_12/2015 | D73: M | E73: 552.6 | F73: 2.14 | G73: 2.638192 | H73: 1457.864899
A74: 91170 | B74: 6.8 | C74: FIXAÇÃO DE TUBOS HORIZONTAIS DE PVC, CPVC OU COBRE DIÂMETROS MENORES OU IGUAIS A 40 MM OU ELETROCALHAS ATÉ 150MM DE LARGURA, COM ABRAÇADEIRA METÁLICA RÍGIDA TIPO D 1/2, FIXADA EM PERFILADO EM LAJE. AF_05/2015 | D74: M | E74: 83.6 | F74: 2.16 | G74: 2.662848 | H74: 222.6140928
A75: 95727 | B75: 6.9 | C75: ELETRODUTO RÍGIDO SOLDÁVEL, PVC, DN 25 MM (3/4), APARENTE, INSTALADO EM TETO - FORNECIMENTO E INSTALAÇÃO. AF_11/2016_P | D75: M | E75: 83.6 | F75: 5.58 | G75: 6.879024 | H75: 575.0864064
A76: 91844 | B76: 6.1 | C76: ELETRODUTO FLEXÍVEL CORRUGADO, PVC, DN 25 MM (3/4"), PARA CIRCUITOS TERMINAIS, INSTALADO EM LAJE - FORNECIMENTO E INSTALAÇÃO. AF_12/2015 | D76: M | E76: 13.6 | F76: 5.85 | G76: 7.21188 | H76: 98.081568
A77: 91860 | B77: 6.11 | C77: ELETRODUTO FLEXÍVEL CORRUGADO, PEAD, DN 40 MM (1 1/2"), PARA CIRCUITOS TERMINAIS, INSTALADO EM PAREDE - FORNECIMENTO E INSTALAÇÃO. AF_12/2015 | D77: M | E77: 32.6 | F77: 13 | G77: 16.0264 | H77: 522.46064
A78: 97592 | B78: 6.12 | C78: LUMINÁRIA TIPO PLAFON, DE SOBREPOR, COM 1 LÂMPADA LED - FORNECIMENTO E INSTALAÇÃO. AF_11/2017 | D78: UD | E78: 24 | F78: 105.77 | G78: 130.393256 | H78: 3129.438144
A79: COMPOSIÇÃO | B79: 6.13 | C79: LAMPADA LED LEDVANCE HIGHBAY 200 W - FORNECIMENTO E INSTALAÇÃO | D79: UD | E79: 24 | F79: 276.9 | G79: 341.36232 | H79: 8192.69568
B81: 7 | C81: PINTURA | I81: =SUM(H82:H85) -> 45197.43927
A82: 79500/2 | B82: 6.1 | C82: PINTURA EPOXI, TRES DEMÃOS | D82: M2 | E82: =339.82+54.16+140.62 -> 534.6 | F82: 24.79 | G82: =F82*(1+$I$8) -> 30.561112 | H82: =E82*G82 -> 16337.97048
A83: 41595 | B83: 6.2 | C83: PINTURA ACRILICA DE FAIXAS DE DEMARCAÇÃO EM QUADRA POLIESPORTIVA, 5CM DE LARGURA | D83: M2 | E83: =300+362.28 -> 662.28 | F83: 13.73 | G83: =F83*(1+$I$8) -> 16.926344 | H83: =E83*G83 -> 11209.9791
A84: 73794/1 | B84: 6.3 | C84: PINTURA COM TINTA PROTETORA ACABAMENTO GRAFITE ESMALTE SOBRE SUPERFICIE METALICA 2 DEMÃOS | D84: M2 | E84: 534.6 | F84: 14.66 | G84: =F84*(1+$I$8) -> 18.072848 | H84: =E84*G84 -> 9661.744541
A85: 88489 | B85: 6.4 | C85: APLICAÇÃO MANUAL DE PINTURA COM TINTA LÁTEX ACRÍLICA NA COBERTURA METÁLICA, DUAS DEMÃOS NA COR AZUL DELREY. AF_06/2014 | D85: M2 | E85: 534.6 | F85: 12.12 | G85: =F85*(1+$I$8) -> 14.941536 | H85: =E85*G85 -> 7987.745146
B87: 8 | C87: EQUIPAMENTOS | I87: =SUM(H88:H91) -> 10177.35574
A88: 25399 | B88: 7.1 | C88: CONJUNTO PARA QUADRA DE VOLEI COM POSTES EM TUBO DE ACO GALVANIZADO 3", H = *255* CM, PINTURA EM TINTA ESMALTE SINTETICO, REDE DE NYLON COM 2 MM, MALHA 10 X 10 CM E ANTENAS OFICIAIS EM FIBRA DE VIDRO | D88: UD | E88: 1 | F88: 1400.6 | G88: =F88*(1+$I$8) -> 1726.65968 | H88: =E88*G88 -> 1726.65968
A89: 25398 | B89: 7.2 | C89: CONJUNTO PARA FUTSAL COM TRAVES OFICIAIS DE 3,00 X 2,00 M EM TUBO DE ACO GALVANIZADO 3" COM REQUADRO EM TUBO DE 1", PINTURA EM PRIMER COM TINTA ESMALTE SINTETICO E REDES DE POLIETILENO FIO 4 MM | D89: UD | E89: 1 | F89: 2307.08 | G89: =F89*(1+$I$8) -> 2844.168224 | H89: =E89*G89 -> 2844.168224
A90: COTAÇÃO | B90: 7.3 | C90: CONJUNTO PARA QUADRA DE BASQUETE, CONFECCIONADA EM TUBO DE AÇO CARBONO Ø 4`` , MÃO FRANCESA DE Ø 2 ``, PROJEÇÃO OFICIAL EXTERNA 2,30M (AVANÇO), COM ACABAMENTO EM MASSA PLASTICA E PINTURA EM TINTA ESMALTE SINTETICO, MODELO FIXO, COM CHUMBADOR PARA O PISO, GALVANIZADA A FOGO - PAR - FORNECIMENTO E INSTALAÇÃO | D90: UD | E90: 1 | F90: 2867.65 | G90: =F90*(1+$I$8) -> 3535.23892 | H90: =E90*G90 -> 3535.23892
A91: COTAÇÃO | B91: 7.4 | C91: TABELA DE BASQUETE OFICIAL, COM ARO E REDE CONFECCIONADA EM LAMINADO NAVAL COM 20MM DE ESPESSURA, NA MEDIDA 1,80x1,05M, PINTURA EM TINTA ESMALTE SINTETICO, ENVOLVIDA POR PERFIS METALICOS COM VEDAÇÃO POR SILICONE, PARAFUSOS GALVANIZADOS E REDE FIO 2MM - PAR - FORNECIMENTO E INSTALAÇÃO | D91: UD | E91: 1 | F91: 1680.15 | G91: =F91*(1+$I$8) -> 2071.28892 | H91: =E91*G91 -> 2071.28892
B93: 9 | C93: DIVERSOS | I93: =SUM(H94:H97) -> 2174.644406
A94: COMPOSIÇÃO | B94: 8.1 | C94: LIMPEZA FINAL DA OBRA | D94: M2 | E94: 422.8 | F94: 2.46 | G94: =F94*(1+$I$8) -> 3.032688 | H94: =E94*G94 -> 1282.220486
A95: 72897 | B95: 8.2 | C95: CARGA MANUAL DE ENTULHO EM CAMINHAO BASCULANTE 6 M3 | D95: M3 | E95: 10 | F95: 20.99 | G95: =F95*(1+$I$8) -> 25.876472 | H95: =E95*G95 -> 258.76472
A96: 95875 | B96: 8.4 | C96: TRANSPORTE COM CAMINHÃO BASCULANTE DE 10 M3, EM VIA URBANA PAVIMENTADA, DMT ATÉ 30 KM (UNIDADE: M3XKM). AF_12/2016 | D96: M³XKm | E96: 10 | F96: 33.9 | G96: =F96*(1+$I$8) -> 41.79192 | H96: =E96*G96 -> 417.9192
A97: COMPOSIÇÃO | B97: 8.5 | C97: DESTINAÇÃO DE RESIDUOS (CERTIFICADO) | D97: M3 | E97: 10 | F97: 17.5 | G97: =F97*(1+$I$8) -> 21.574 | H97: =E97*G97 -> 215.74
A98: TOTAL GERAL: | I98: =I11+I19+I40+I52+I61+I81+I93+I66+I87 -> 603223.2928

Sheet Planilha2
A1: PREFEITURA MUNICIPAL DE ITAPOÁ – SC
A3: CRONOGRAMA FÍSICO-FINANCEIRO
A6: OBRA: QUADRA POLIESPORTIVA - ESCOLA E. F. FREI VALENTIM | L6: BASE: SINAPI-SC – OUT./2019
A7: LOCALIDADE: ITAPOÁ | L7: NÃO DESONERADO
L8: 0.2279
A10: Item | B10: Discriminação dos serviços | C10: Peso (%) | D10: Valor das obras/serviços (R$) | E10: Mês 01 | G10: Mês 02 | I10: Mês 03 | K10: Total (R$) | L10: Total (%)
E11: Valor R$ | F11: % | G11: Valor R$ | H11: % | I11: Valor R$ | J11: %
B12: Materiais e serviços
A13: 1 | B13: =Planilha1!C11 -> SERVIÇOS PRELIMINARES | C13: =$D13/$D$22 -> 0.08634599004 | D13: =Planilha1!I11 -> 52085.91243 | E13: =$D13*F13 -> 52085.91243 | F13: 1 | K13: =E13+G13+I13 -> 52085.91243 | L13: =F13+H13+J13 -> 1
A14: 2 | B14: =Planilha1!C19 -> INFRA ESTRUTURA | C14: 0.09291681762 | D14: =Planilha1!I19 -> 56049.58868 | E14: =$D14*F14 -> 56049.58868 | F14: 1 | K14: =E14+G14+I14 -> 56049.58868 | L14: =F14+H14+J14 -> 1
A15: 3 | B15: =Planilha1!C40 -> SUPRA ESTRUTURA | C15: 0.1208190286 | D15: =Planilha1!I40 -> 72880.85224 | E15: =$D15*F15 -> 36440.42612 | F15: 0.5 | G15: =$D15*H15 -> 36440.42612 | H15: 0.5 | K15: =E15+G15 -> 72880.85224 | L15: =F15+H15+J15 -> 1
A16: 4 | B16: =Planilha1!C52 -> COBERTURA | C16: 0.5759769263 | D16: =Planilha1!I52 -> 347442.6981 | G16: =$D16*H16 -> 243209.8886 | H16: 0.7 | I16: =$D16*J16 -> 104232.8094 | J16: 0.3 | K16: =G16+I16 -> 347442.6981 | L16: 1
A17: 5 | B17: =Planilha1!C61 -> PISO | C17: 0.003171083871 | D17: =Planilha1!I61 -> 1912.871654 | I17: 1912.871654 | J17: 1 | K17: =I17 -> 1912.871654 | L17: 1
A18: 6 | B18: INSTALAÇÃO ELÉTRICA | C18: 0.02536694201 | D18: =Planilha1!I66 -> 15301.93029 | G18: =$D18*H18 -> 5355.6756 | H18: 0.35 | I18: 9946.254686 | J18: 0.65 | K18: =G18+I18 -> 15301.93029 | L18: 1
A19: 7 | B19: PINTURA | C19: 0.07492654844 | D19: =Planilha1!I81 -> 45197.43927 | I19: 45197.43927 | J19: 1 | K19: =I19 -> 45197.43927 | L19: 1
A20: 8 | B20: EQUIPAMENTOS | C20: 0.01687162261 | D20: =Planilha1!I87 -> 10177.35574 | I20: 10177.35574 | J20: 1 | K20: =I20 -> 10177.35574 | L20: 1
A21: 9 | B21: DI8VERSOS | C21: 0.003605040509 | D21: =Planilha1!I93 -> 2174.644406 | I21: 2174.644406 | J21: 1 | K21: =I21 -> 2174.644406 | L21: 1
A22: Total simples | C22: =SUM(C13:C21) -> 1 | D22: =SUM(D13:D21) -> 603223.2928 | E22: =SUM(E13:E21) -> 144575.9272 | F22: =E22/$D$22 -> 0.2396723219 | G22: =SUM(G13:G21) -> 285005.9904 | H22: =G22/$D$22 -> 0.4724717924 | I22: =SUM(I13:I21) -> 173641.3752 | J22: =I22/$D$22 -> 0.2878558856
A23: Total acumulado | C23: =C22 -> 1 | D23: =D22 -> 603223.2928 | E23: =E22 -> 144575.9272 | F23: =F22 -> 0.2396723219 | G23: =G22+E23 -> 429581.9176 | H23: 0.7121441144 | I23: 603223.2928 | J23: 1 | K23: =SUM(K12:K21) -> 603223.2928 | L23: =K23/D23 -> 1
